fUST/lending_fUST_20240111
["ID","MTS","AMOUNT","RATE_DAILY","PERIOD"]
[311123342,1704921053414,-500.0,0.00032602,2]
[311123343,1704921053423,-500.0,0.00032602,2]
[311123344,1704921053432,-547.03,0.00032602,2]
[311123345,1704921053443,-648.93,0.00032602,2]
[311123346,1704921053453,-500.0,0.00032602,2]
[311123347,1704921053467,-587.01,0.00032602,2]
[311123348,1704921053478,-500.0,0.00032602,2]
[311123349,1704921053487,-9053.63,0.00032602,2]
[311123350,1704921053497,-1339.03,0.00032602,2]
[311123351,1704921053506,-563.20701334,0.00032602,2]
[311123352,1704921053516,-565.65,0.00032602,2]
[311123353,1704921053525,-1343.0,0.00032602,2]
[311123354,1704921053535,-1448.25,0.00032602,2]
[311123355,1704921053545,-500.0,0.00032602,2]
[311123356,1704921053554,-1005.16,0.00032602,2]
[311123357,1704921053563,-1403.51,0.00032602,2]
[311123358,1704921053573,-500.0,0.00032602,2]
[311123359,1704921053583,-502.17,0.00032602,2]
[311123360,1704921053592,-738.72,0.00032602,2]
[311123361,1704921053601,-500.0,0.00032602,2]
[311123362,1704921053610,-3923.59,0.00032602,2]
[311123363,1704921053621,-500.0,0.00032602,2]
[311123364,1704921053631,-500.0,0.00032602,2]
[311123365,1704921053640,-500.0,0.00032602,2]
[311123366,1704921053649,-654.77,0.00032602,2]
[311123367,1704921053658,-500.0,0.00032602,2]
[311123368,1704921053668,-157.16319023,0.0003265,7]
[311123369,1704921053677,-157.16319023,0.00032672,7]
[311123370,1704921053687,-157.16319023,0.00032687,7]
[311123371,1704921053696,-157.16319023,0.00032692,7]
[311123372,1704921053705,-200.0,0.00032876,2]
[311123373,1704921053716,-200.0,0.00032876,2]
[311123374,1704921053725,-200.0,0.00032876,2]
[311123375,1704921053734,-200.0,0.00032876,2]
[311123376,1704921053746,-203.08881606,0.00032876,2]
[311123377,1704921053755,-500.0,0.00032876,2]
[311123378,1704921053764,-500.0,0.00032876,2]
[311123379,1704921053773,-525.54,0.00032876,2]
[311123380,1704921053782,-500.0,0.00032876,2]
[311123381,1704921053791,-500.0,0.00032876,2]
[311123382,1704921053801,-648.93,0.00032876,2]
[311123383,1704921053810,-412.2,0.00032876,2]
[311123384,1704921053819,-587.01,0.00032876,2]
[311123385,1704921053829,-239.75117528,0.00032876,2]
[311123386,1704921053839,-9053.63,0.00032876,2]
[311123387,1704921053848,-1339.03,0.00032876,2]
[311123388,1704921053858,-565.65,0.00032876,2]
[311123389,1704921053867,-1343.0,0.00032876,2]
[311123390,1704921053877,-500.0,0.00032876,2]
[311123391,1704921053886,-1448.25,0.00032876,2]
[311123392,1704921053896,-1005.16,0.00032876,2]
[311123393,1704921053906,-533.62330357,0.00032876,2]
[311123394,1704921053915,-1403.51,0.00032876,2]
[311123395,1704921053925,-500.0,0.00032876,2]
[311123396,1704921053936,-250.0,0.00032876,10]
[311123397,1704921053945,-502.17,0.00032876,2]
[311123398,1704921053953,-738.72,0.00032876,2]
[311123399,1704921053965,-500.0,0.00032876,2]
[311123400,1704921053974,-3923.59,0.00032876,2]
[311123401,1704921053984,-500.0,0.00032876,2]
[311123402,1704921053994,-500.0,0.00032876,2]
[311123403,1704921054003,-500.0,0.00032876,2]
[311123404,1704921054013,-654.77,0.00032876,2]
[311123405,1704921054022,-312.44,0.00032876,2]
[311123406,1704921054031,-500.0,0.00032876,7]
[311123407,1704921054041,-500.0,0.00032876,7]
[311123408,1704921054051,-601.57588607,0.00032876,7]
[311123409,1704921054061,-500.0,0.00032876,7]
[311123410,1704921054071,-232.12869011,0.00032876,7]
[311123411,1704921054080,-536.07857165,0.00032876,7]
[311123412,1704921054090,-294.10809407,0.00032876,7]
[311123413,1704921054099,-500.0,0.00032876,7]
[311123414,1704921054108,-500.0,0.00032876,7]
[311123415,1704921054117,-187.93271868,0.00032876,7]
[311123416,1704921054126,-500.0,0.00032876,7]
[311123417,1704921054135,-500.0,0.00032876,7]
[311123418,1704921054143,-500.0,0.00032876,7]
[311123419,1704921054152,-500.0,0.00032876,7]
[311123420,1704921054162,-500.0,0.00032876,7]
[311123421,1704921054171,-500.0,0.00032876,7]
[311123422,1704921054180,-500.0,0.00032876,7]
[311123423,1704921054189,-500.0,0.00032876,7]
[311123424,1704921054199,-500.0,0.00032876,7]
[311123425,1704921054208,-500.0,0.00032876,7]
[311123426,1704921054220,-500.0,0.00032876,7]
[311123427,1704921054229,-168.83601071,0.0003288,7]
[311123428,1704921054240,-168.83601071,0.0003288,7]
[311123429,1704921054249,-168.83601071,0.0003288,7]
[311123430,1704921054258,-168.83601071,0.0003288,7]
[311123431,1704921054267,-168.83601071,0.0003288,7]
[311123432,1704921054276,-168.83601071,0.0003288,7]
[311123433,1704921054285,-168.83601071,0.0003288,7]
[311123434,1704921054295,-168.83601071,0.0003288,7]
[311123435,1704921054308,-168.83601071,0.0003288,7]
[311123436,1704921054318,-168.83601071,0.0003288,7]
[311123437,1704921054327,-168.83601071,0.0003288,7]
[311123438,1704921054336,-168.83601071,0.0003288,7]
[311123439,1704921054346,-168.83601071,0.0003288,7]
[311123440,1704921054355,-168.83601071,0.0003288,7]
[311123441,1704921054367,-168.83601071,0.0003288,7]
[311123442,1704921054377,-168.83601071,0.0003288,7]
[311123443,1704921054387,-168.83601071,0.0003288,7]
[311123444,1704921054396,-168.83601071,0.0003288,7]
[311123445,1704921054406,-168.83601071,0.0003288,7]
[311123446,1704921054415,-168.83,0.0003288,7]
[311123447,1704921054424,-675.34404283,0.0003288,7]
[311123448,1704921054433,-675.34404283,0.0003288,7]
[311123449,1704921054441,-675.34404283,0.0003288,7]
[311123450,1704921054450,-675.34404283,0.0003288,7]
[311123451,1704921054458,-675.34404283,0.0003288,7]
[311123452,1704921054472,-675.34404283,0.0003288,7]
[311123453,1704921054481,-675.34404283,0.0003288,7]
[311123454,1704921054489,-675.34404283,0.0003288,7]
[311123455,1704921054497,-675.34404283,0.0003288,7]
[311123456,1704921054506,-675.34404283,0.0003288,7]
[311123457,1704921054515,-675.34404283,0.0003288,7]
[311123458,1704921054525,-675.34404283,0.0003288,7]
[311123459,1704921054534,-675.34404283,0.0003288,7]
[311123460,1704921054544,-675.34404283,0.0003288,7]
[311123461,1704921054552,-675.34404283,0.0003288,7]
[311123462,1704921054561,-675.34404283,0.0003288,7]
[311123463,1704921054571,-675.34404283,0.0003288,7]
[311123464,1704921054579,-675.34404283,0.0003288,7]
[311123465,1704921054588,-675.34404283,0.0003288,7]
[311123466,1704921054597,-675.34,0.0003288,7]
[311123467,1704921054607,-198.05951118,0.0003288,7]
[311123468,1704921054616,-198.05951118,0.0003288,7]
[311123469,1704921054626,-198.05,0.0003288,7]
[311123470,1704921054636,-500.0,0.00032999,7]
[311123471,1704921054645,-226.01091952,0.00032999,7]
[311123472,1704921054656,-254.34981392,0.00032999,7]
[311123473,1704921054666,-500.0,0.00032999,7]
[311123474,1704921054676,-435.07842879,0.00032999,7]
[311123475,1704921054686,-500.0,0.00032999,7]
[311123476,1704921054695,-306.77781415,0.00032999,7]
[311123477,1704921054704,-500.0,0.00032999,7]
[311123478,1704921054717,-622.65912636,0.00032999,7]
[311123479,1704921054727,-899.86988398,0.00033,2]
[311123480,1704921054736,-688.16799535,0.00033,3]
[311123481,1704921054744,-1000.0,0.00033,33]
[311123482,1704921054754,-13129.74957923,0.00033,2]
[311123483,1704921054762,-154.0,0.00033,2]
[311123484,1704921054773,-169.0,0.00033,2]
[311123485,1704921054782,-169.0,0.00033,2]
[311123486,1704921054794,-620.00040072,0.00033031,2]
[311123487,1704921054804,-157.16319023,0.00033076,7]
[311123488,1704921054813,-500.0,0.0003315,2]
[311123489,1704921054823,-500.0,0.0003315,2]
[311123490,1704921054832,-525.54,0.0003315,2]
[311123491,1704921054841,-475.28,0.0003315,2]
[311123492,1704921054850,-390.96,0.0003315,2]
[311123493,1704921054860,-648.93,0.0003315,2]
[311123494,1704921054869,-587.01,0.0003315,2]
[311123495,1704921054879,-9053.63,0.0003315,2]
[311123496,1704921054888,-1339.03,0.0003315,2]
[311123497,1704921054897,-565.65,0.0003315,2]
[311123498,1704921054907,-1343.0,0.0003315,2]
[311123499,1704921054917,-500.0,0.0003315,2]
[311123500,1704921054926,-1448.25,0.0003315,2]
[311123501,1704921054936,-1005.16,0.0003315,2]
[311123502,1704921054946,-1403.51,0.0003315,2]
[311123503,1704921054955,-500.0,0.0003315,2]
[311123504,1704921054969,-502.17,0.0003315,2]
[311123505,1704921054978,-738.72,0.0003315,2]
[311123506,1704921054988,-500.0,0.0003315,2]
[311123507,1704921055070,-3923.59,0.0003315,2]
[311123508,1704921055081,-500.0,0.0003315,2]
[311123509,1704921055090,-500.0,0.0003315,2]
[311123510,1704921055100,-500.0,0.0003315,2]
[311123511,1704921055110,-654.77,0.0003315,2]
[311123512,1704921055119,-20934.68838075,0.00033178,2]
[311123513,1704921055129,-20934.68838075,0.00033196,2]
[311123514,1704921055139,-20934.68838075,0.00033197,2]
[311123515,1704921055148,-150.92453773,0.00033197,2]
[311123516,1704921055157,-250.36569715,0.00033197,2]
[311123517,1704921055166,-20934.68838075,0.000332,2]
[311123518,1704921055176,-649.62529053,0.00033424,4]
[311123519,1704921055185,-734.07659668,0.00033424,4]
[311123520,1704921055194,-5144.20618515,0.00033424,4]
[311123521,1704921055203,-4312.09176442,0.00033424,4]
[311123522,1704921055213,-500.0,0.00033424,2]
[311123523,1704921055223,-500.0,0.00033424,2]
[311123524,1704921055232,-525.54,0.00033424,2]
[311123525,1704921055241,-648.93,0.00033424,2]
[311123526,1704921055250,-587.01,0.00033424,2]
[311123527,1704921055259,-9053.63,0.00033424,2]
[311123528,1704921055268,-1339.03,0.00033424,2]
[311123529,1704921055277,-565.65,0.00033424,2]
[311123530,1704921055287,-1343.0,0.00033424,2]
[311123531,1704921055297,-1448.25,0.00033424,2]
[311123532,1704921055309,-500.0,0.00033424,2]
[311123533,1704921055318,-1005.16,0.00033424,2]
[311123534,1704921055328,-1403.51,0.00033424,2]
[311123535,1704921055337,-383.45,0.00033424,2]
[311123536,1704921055348,-502.17,0.00033424,2]
[311123537,1704921055359,-738.72,0.00033424,2]
[311123538,1704921055369,-500.0,0.00033424,2]
[311123539,1704921055379,-3923.59,0.00033424,2]
[311123540,1704921055388,-500.0,0.00033424,2]
[311123541,1704921055398,-500.0,0.00033424,2]
[311123542,1704921055407,-500.0,0.00033424,2]
[311123543,1704921055416,-654.77,0.00033424,2]
[311123544,1704921055426,-277.640403,0.00033435,2]
[311123545,1704921055435,-246.719687,0.00033435,2]
[311123546,1704921055444,-176.648613,0.00033435,2]
[311123547,1704921055453,-191.629359,0.00033435,2]
[311123548,1704921055466,-164.471897,0.00033435,2]
[311123549,1704921055475,-167.321532,0.00033435,2]
[311123550,1704921055485,-295.3221,0.00033435,2]
[311123551,1704921055494,-158.272084,0.00033435,2]
[311123552,1704921055503,-451.7797763,0.00033562,2]
[311123553,1704921055513,-306.8172151,0.00033562,2]
[311123554,1704921055522,-153.0,0.00033562,2]
[311123555,1704921055531,-153.0,0.00033562,2]
[311123556,1704921055540,-458.9999998,0.00033562,2]
[311123557,1704921055549,-153.0,0.00033562,2]
[311123558,1704921055559,-160.0,0.00033599,3]
[311123559,1704921055568,-151.0,0.00033629,2]
[311123560,1704921055578,-500.0,0.00033698,2]
[311123561,1704921055586,-500.0,0.00033698,2]
[311123562,1704921055595,-525.54,0.00033698,2]
[311123563,1704921055604,-648.93,0.00033698,2]
[311123564,1704921055614,-587.01,0.00033698,2]
[311123565,1704921055623,-9053.63,0.00033698,2]
[311123566,1704921055632,-1339.03,0.00033698,2]
[311123567,1704921055641,-565.65,0.00033698,2]
[311123569,1704921055650,-1343.0,0.00033698,2]
[311123570,1704921055659,-1448.25,0.00033698,2]
[311123571,1704921055668,-500.0,0.00033698,2]
[311123572,1704921055677,-1005.16,0.00033698,2]
[311123573,1704921055686,-1403.51,0.00033698,2]
[311123574,1704921055695,-502.17,0.00033698,2]
[311123575,1704921055704,-738.72,0.00033698,2]
[311123576,1704921055717,-500.0,0.00033698,2]
[311123577,1704921055726,-3923.59,0.00033698,2]
[311123578,1704921055735,-500.0,0.00033698,2]
[311123579,1704921055745,-500.0,0.00033698,2]
[311123580,1704921055755,-500.0,0.00033698,2]
[311123581,1704921055764,-654.77,0.00033698,2]
[311123582,1704921055773,-301.84907546,0.00033755,4]
[311123583,1704921055782,-155.44388085,0.00033767,7]
[311123584,1704921055792,-157.16319023,0.00033772,7]
[311123585,1704921055801,-5000.0,0.00033778,7]
[311123586,1704921055811,-340579.91163447,0.000338,7]
[311123587,1704921055825,-113343.26930553,0.000338,7]
[311123588,1704921055835,-160.0,0.00033808,4]
[311123589,1704921055844,-277.640403,0.00033853,2]
[311123590,1704921055853,-179.791074,0.00033853,2]
[311123591,1704921055863,-832.92121,0.00033853,2]
[311123592,1704921055872,-539.373223,0.00033853,2]
[311123593,1704921055882,-277.640403,0.00033853,2]
[311123594,1704921055892,-179.791074,0.00033853,2]
[311123595,1704921055902,-277.640403,0.00033853,2]
[311123596,1704921055912,-246.719687,0.00033853,2]
[311123597,1704921055922,-157.16319023,0.00033876,7]
[311123598,1704921055932,-152.35064136,0.00033954,7]
[311123599,1704921055942,-500.0,0.00033972,2]
[311123600,1704921055952,-500.0,0.00033972,2]
[311123601,1704921055964,-525.54,0.00033972,2]
[311123602,1704921055974,-648.93,0.00033972,2]
[311123603,1704921055983,-587.01,0.00033972,2]
[311123604,1704921055993,-2803.95111184,0.00033972,2]
[311123605,1704921056005,-290.81876086,0.00033972,2]
[311123606,1704921056140,-301.30095178,0.00015593,2]
[311123607,1704921056149,-616.91704862,0.00028451,2]
[311123608,1704921056176,-3371.35772927,0.00028451,2]
[311123609,1704921056197,-242.59429943,0.00015593,2]
[311123610,1704921056206,-11.73770017,0.00028451,2]
[311123611,1704921056312,-1575.9466697,0.00015593,2]
[311123612,1704921056322,-154.92253873,0.00015593,2]
[311123613,1704921056331,-198.82408315,0.00015593,2]
[311123614,1704921056341,-2890.61488594,0.00028451,2]
[311123615,1704921056350,-6890.627364,0.00028459,2]
[311123616,1704921056359,-228.09113751,0.00028459,2]
[311123650,1704921714135,22663.2912483,0.00013137,2]
[311123652,1704921752868,3831.52999447,0.00013137,2]
[311123653,1704921768872,1312.67619068,0.00013137,2]
[311123655,1704921823926,5166.9950996,0.0001312,2]
[311123659,1704921845704,217.386201,0.00013433,2]
[311123660,1704921851606,-154.95351395,0.00014111,2]
[311123661,1704921851638,-154.95351395,0.00014112,2]
[311123662,1704921851670,-178.51706094,0.00014112,2]
[311123663,1704921851701,-253.55669293,0.00014112,2]
[311123664,1704921851733,-1172.5308552,0.00014112,2]
[311123665,1704921851762,-7987.09073251,0.00014112,2]
[311123666,1704921851791,-1737.24988191,0.00014112,2]
[311123667,1704921851822,-154.95351395,0.00014113,2]
[311123668,1704921851852,-206.19423466,0.00014113,2]
[311123669,1704921851903,-741.24444913,0.00014113,2]
[311123670,1704921851933,-154.95351395,0.00014113,2]
[311123671,1704921851962,-466.69842907,0.00014114,2]
[311123672,1704921851992,-301.30095178,0.00014114,2]
[311123673,1704921852023,-154.95351395,0.00014114,2]
[311123674,1704921852055,-154.95351395,0.00014115,2]
[311123675,1704921852084,-154.95351395,0.00014115,2]
[311123676,1704921852112,-164.24940589,0.00014116,2]
[311123677,1704921852142,-154.95351395,0.00014116,2]
[311123678,1704921852173,-322.83363774,0.00014116,2]
[311123679,1704921852203,-178.44106149,0.00014117,2]
[311123680,1704921852233,-154.95351395,0.00014117,2]
[311123681,1704921852264,-2034.80072126,0.00014117,2]
[311123682,1704921852293,-360.7362932,0.00014118,2]
[311123683,1704921852325,-154.95351395,0.00014118,2]
[311123684,1704921852354,-261.7761853,0.00014118,2]
[311123685,1704921852383,-264.87381963,0.00014118,2]
[311123686,1704921852412,-285.7548216,0.00014119,2]
[311123687,1704921852441,-2029.97306616,0.00014119,2]
[311123688,1704921852470,-3502.6425601,0.00014119,2]
[311123689,1704921852585,-1285.87509545,0.00014119,2]
[311123690,1704921852617,-10714.12490455,0.00014119,2]
[311123691,1704921852654,-12000.0,0.00014119,2]
[311123692,1704921852703,-12000.0,0.00014119,2]
[311123693,1704921852746,-12000.0,0.00014119,2]
[311123694,1704921852788,-12000.0,0.00014119,2]
[311123695,1704921852845,-294.43000119,0.0001411,2]
[311123696,1704921852880,-11705.56999881,0.00014119,2]
[311123697,1704921852920,-12000.0,0.00014119,2]
[311123698,1704921852963,-95.13796796,0.00014119,2]
[311123699,1704921853000,-11904.86203204,0.0001412,2]
[311123700,1704921853044,-7923.53786989,0.0001412,2]
[311123701,1704921853083,-4076.46213011,0.00014125,2]
[311123702,1704921853128,-12000.0,0.00014125,2]
[311123703,1704921853172,-4785.00170364,0.00014125,2]
[311123704,1704921853207,-2070.35788054,0.00014134,2]
[311123705,1704921853503,154.95351395,0.0001411,2]
[311123706,1704921857263,-259.57634324,0.0001411,2]
[311123707,1704921857376,-5.29747639,0.0001411,2]
[311123709,1704921882526,-964.55150019,0.00014152,2]
[311123710,1704921882561,-5625.4673869,0.00014153,2]
[311123711,1704921882599,-238.057098,0.00014585,2]
[311123712,1704921882638,-200.0,0.00015539,2]
[311123713,1704921882675,-156.15818954,0.00015583,2]
[311123714,1704921882710,-520.97192037,0.00015592,2]
[311123715,1704921882743,-271.96235488,0.00017092,2]
[311123716,1704921882778,-280.0,0.00017093,2]
[311123717,1704921882811,-268.14386702,0.00017124,2]
[311123718,1704921882850,-284.47629058,0.00017124,2]
[311123719,1704921882883,-228.02594231,0.00017124,2]
[311123720,1704921882915,-155.82283665,0.00017124,2]
[311123721,1704921882950,-279.82780709,0.00017124,2]
[311123722,1704921882983,-192.13377615,0.00017124,2]
[311123723,1704921883017,-156.05675576,0.00017124,2]
[311123724,1704921883052,-560.33964085,0.00017125,2]
[311123725,1704921883089,-158.11687985,0.00017135,2]
[311123726,1704921887721,860.80550823,0.00014152,2]
[311123729,1704921934046,180.0,0.00012737,2]
[311123731,1704922014114,-154.93802479,0.0001799,2]
[311123741,1704922195026,172.88632288,0.00017134,2]
[311123742,1704922195593,2516.18359305,0.00027,7]
[311123744,1704922221977,198.8420772,0.00016232,2]
[311123867,1704922233602,-285.7548216,0.00017226,2]
[311123868,1704922233613,-253.55669293,0.00017227,2]
[311123870,1704922233627,-1737.24988191,0.00017227,2]
[311123872,1704922233642,-964.55150019,0.00017227,2]
[311123873,1704922233656,-19828.39990193,0.00017227,2]
[311123874,1704922233670,-164.24940589,0.00017228,2]
[311123875,1704922233683,-154.9690062,0.00017228,2]
[311123877,1704922233698,-360.7362932,0.00017228,2]
[311123879,1704922233710,-7987.09073251,0.00017228,2]
[311123881,1704922233722,-860.80550823,0.00017229,2]
[311123883,1704922233736,-261.7761853,0.00017229,2]
[311123884,1704922233749,-154.9690062,0.0001723,3]
[311123886,1704922233770,-36890.05042447,0.00017231,2]
[311123888,1704922233783,-154.9690062,0.00017232,2]
[311123890,1704922233797,-8328.4478399,0.00017232,2]
[311123893,1704922233814,-2278.425,0.00017232,2]
[311123961,1704922237951,-5273.85329336,0.00017232,2]
[311123963,1704922237964,-1989.51321951,0.00017233,2]
[311123966,1704922237977,-872.56977946,0.00017235,2]
[311123968,1704922237990,-569.973136,0.00017243,2]
[311123970,1704922238001,-246.05359663,0.000178,2]
[311123972,1704922238012,-10500.0358078,0.00017898,2]
[311123974,1704922238024,-62042.16308713,0.0001799,2]
[311123977,1704922238035,-546.7810851,0.0001799,2]
[311123979,1704922238047,-155.10057155,0.0001799,2]
[311123981,1704922238059,-1578.65511595,0.00019,2]
[311123983,1704922238071,-1112.08388858,0.000195,2]
[311123986,1704922238082,-486.02599516,0.000199,2]
[311123988,1704922238094,-264.2768099,0.00019996,2]
[311124005,1704922238282,-271.96235488,0.00019996,2]
[311124008,1704922238298,-300.71867067,0.00019996,2]
[311124010,1704922238308,-157.44771707,0.00019997,2]
[311124012,1704922238318,-184.18864201,0.00019997,2]
[311124014,1704922238328,-190.12453264,0.00019997,2]
[311124016,1704922238337,-242.59429943,0.00019997,2]
[311124018,1704922238347,-911.07817279,0.00019997,2]
[311124020,1704922238357,-156.8927579,0.00019997,2]
[311124022,1704922238367,-901.68385165,0.00019997,2]
[311124024,1704922238376,-155.65764138,0.00019997,2]
[311124026,1704922238385,-156.28755879,0.00019997,2]
[311124027,1704922238402,-15406.87361064,0.00019997,2]
[311124029,1704922238412,-191.01244923,0.00019997,2]
[311124031,1704922238422,-232.6356125,0.00019998,2]
[311124033,1704922238432,-155.80649424,0.00019998,2]
[311124035,1704922238442,-1346.91227776,0.00019998,2]
[311124037,1704922238452,-383.70342369,0.00019998,2]
[311124039,1704922238461,-186.63838964,0.00019998,2]
[311124041,1704922238471,-301.00068471,0.00019998,2]
[311124043,1704922238481,-2028.3271136,0.00019998,2]
[311124045,1704922238492,-412.94033458,0.00019998,2]
[311124047,1704922238501,-1212.70216413,0.00019998,2]
[311124049,1704922238511,-731.16986773,0.00019998,2]
[311124051,1704922238521,-305.31723351,0.00019999,2]
[311124053,1704922238531,-434.4673643,0.00019999,2]
[311124055,1704922238540,-189.7114395,0.00019999,2]
[311124057,1704922238550,-59610.31308548,0.00019999,2]
[311124059,1704922238559,-853.57612089,0.0002,2]
[311124061,1704922238568,-676.96253794,0.0002,2]
[311124063,1704922238578,-1195.09669838,0.0002,2]
[311124065,1704922238588,-266.19065175,0.0002,2]
[311124067,1704922238597,-236.79527182,0.0002,2]
[311124069,1704922238607,-154.95351395,0.0002,2]
[311124071,1704922238616,-270734.30120863,0.0002,2]
[311124073,1704922238626,-569.19143491,0.0002,2]
[311124075,1704922238635,-665.20950523,0.0002,2]
[311124077,1704922238653,-154.95351395,0.0002,2]
[311124079,1704922238662,-154.9690062,0.0002,2]
[311124081,1704922238671,-5359.376873,0.0002,2]
[311124083,1704922238681,-5359.376873,0.0002,2]
[311124085,1704922238691,-5359.376873,0.0002,2]
[311124087,1704922238700,-5359.376873,0.0002,2]
[311124089,1704922238709,-5359.376873,0.0002,2]
[311124091,1704922238718,-326.73090334,0.00021,2]
[311124093,1704922238728,-312.7508677,0.00021918,2]
[311124095,1704922238737,-166.666666,0.00021918,2]
[311124097,1704922238746,-292.83058016,0.00022,4]
[311124099,1704922238756,-3931.75997852,0.00022,2]
[311124101,1704922238768,-4917.8600325,0.00022,2]
[311124102,1704922238777,-156.86767994,0.00022,2]
[311124104,1704922238788,-166.666666,0.00022431,2]
[311124107,1704922238798,-154.95351395,0.000225,2]
[311124109,1704922238807,-486.02599513,0.00022658,2]
[311124111,1704922238817,-166.666666,0.00022944,2]
[311124113,1704922238827,-9920.80434626,0.00023,2]
[311124115,1704922238836,-2093.08732709,0.00023,2]
[311124117,1704922238845,-166.666666,0.00023456,2]
[311124119,1704922238855,-166.666666,0.00023969,2]
[311124121,1704922238865,-2293.16748545,0.00024,2]
[311124123,1704922238874,-614.01289661,0.00024,2]
[311124125,1704922238885,-166.666666,0.00024482,2]
[311124126,1704922238901,-200.0,0.00024658,2]
[311124129,1704922238911,-380.0,0.00024658,2]
[311124131,1704922238921,-500.0,0.00024999,2]
[311124133,1704922238932,-635.28647525,0.00024999,2]
[311124134,1704922238941,-536.07857165,0.00024999,2]
[311124136,1704922238950,-500.0,0.00024999,2]
[311124138,1704922238958,-646.91480141,0.00024999,2]
[311124140,1704922238967,-650.34617494,0.00024999,2]
[311124142,1704922238977,-500.0,0.00024999,2]
[311124144,1704922238986,-500.0,0.00024999,2]
[311124146,1704922238995,-500.0,0.00024999,2]
[311124147,1704922239005,-500.0,0.00024999,2]
[311124149,1704922239013,-500.0,0.00024999,2]
[311124151,1704922239023,-500.0,0.00024999,2]
[311124153,1704922239032,-500.0,0.00024999,2]
[311124154,1704922239041,-472.65719185,0.00024999,2]
[311124156,1704922239050,-500.0,0.00024999,2]
[311124158,1704922239059,-500.0,0.00024999,2]
[311124160,1704922239069,-3000.0,0.00025,2]
[311124162,1704922239079,-4711.08145103,0.00025,2]
[311124163,1704922239088,-486.02599513,0.00025416,2]
[311124164,1704922239097,-569.973136,0.00025864,2]
[311124165,1704922239107,-525.91402641,0.00026,2]
[311124166,1704922239117,-733.25771754,0.00027,2]
[311124167,1704922239126,-9098.22062588,0.000273,4]
[311124168,1704922239137,-500.0,0.00027397,2]
[311124169,1704922239153,-14761.11,0.00027397,3]
[311124171,1704922239162,-12300.92,0.00027397,3]
[311124173,1704922239172,-10250.77,0.00027397,3]
[311124174,1704922239181,-446.75615925,0.00027534,2]
[311124175,1704922239191,-687.59711705,0.000277,2]
[311124176,1704922239200,-3089.70069499,0.00027998,2]
[311124178,1704922239210,-486.02599513,0.00028174,2]
[311124179,1704922239219,-891.77299787,0.00028252,2]
[311124180,1704922239228,-198.65629221,0.00028252,2]
[311124181,1704922239238,-677.45880314,0.00028252,2]
[311124182,1704922239247,-309.81412082,0.00028253,2]
[311124183,1704922239257,-243.6662938,0.00028253,2]
[311124184,1704922239266,-284.97198612,0.00028254,2]
[311124185,1704922239275,-155.39178535,0.0002845,2]
[311124186,1704922239284,-200.0,0.00028459,2]
[311124187,1704922239294,-305.01426273,0.00028459,2]
[311124188,1704922239303,-763.40324942,0.00028459,2]
[311124189,1704922239313,-1821.85168105,0.00028459,2]
[311124190,1704922239322,-2079.63666476,0.00028459,2]
[311124191,1704922239331,-3313.2630203,0.00028459,2]
[311124192,1704922239340,-501.0,0.00028459,2]
[311124193,1704922239350,-619.44144137,0.00028459,2]
[311124194,1704922239359,-300.0,0.00028459,2]
[311124195,1704922239369,-155.29508163,0.00028459,2]
[311124196,1704922239381,-155.07725077,0.00028459,2]
[311124197,1704922239400,-10280.02525619,0.00028459,2]
[311124198,1704922239411,-5000.0,0.00028466,5]
[311124199,1704922239421,-23118.20955723,0.00028565,3]
[311124200,1704922239430,-48756.80043747,0.00028565,3]
[311124201,1704922239440,-25918.12853255,0.00028565,2]
[311124202,1704922239450,-254.05524745,0.00028701,3]
[311124203,1704922239459,-591.88,0.00029,2]
[311124204,1704922239468,-1982.97164167,0.00029,2]
[311124205,1704922239478,-150.0,0.00029458,2]